fUSD/lending_fUSD_20240114
["ID","MTS","AMOUNT","RATE_DAILY","PERIOD"]
[311597018,1705263264129,157.34229255,0.00022005,2]
[311597019,1705263265415,157.34229253,0.00022016,2]
[311597020,1705263267089,157.34229253,0.00022026,2]
[311597021,1705263270296,651.18552596,0.00022025,2]
[311597022,1705263270695,203.13485525,0.000221,2]
[311597023,1705263274082,161.66192556,0.00022025,2]
[311597024,1705263274111,588.86,0.00021239,2]
[311597025,1705263274569,278.87214514,0.000221,2]
[311597026,1705263275247,749029.9715,0.00022026,2]
[311597027,1705263278199,171.60687536,0.00022027,2]
[311597028,1705263278987,11691.572,0.00022026,2]
[311597029,1705263281901,1927.42347852,0.000221,2]
[311597030,1705263282741,1163.99,0.00021391,2]
[311597031,1705263283456,266.08,0.00021239,2]
[311597032,1705263284313,280.13609182,0.00021879,2]
[311597033,1705263284683,257.61889277,0.000221,2]
[311597034,1705263284968,550.4073,0.00022026,2]
[311597035,1705263285839,2136.20982977,0.000221,2]
[311597036,1705263286303,345.74220783,0.000221,2]
[311597037,1705263287473,283.535,0.00020995,2]
[311597038,1705263288111,161.66192556,0.000221,2]
[311597039,1705263290573,278.87214514,0.000221,2]
[311597040,1705263292857,134492.45987465,0.000221,2]
[311597041,1705263297303,1443.31614389,0.00022004,2]
[311597042,1705263299438,404.01534873,0.00022099,2]
[311597043,1705263299496,766.13795636,0.00022099,2]
[311597044,1705263300221,4700.36368695,0.00022099,2]
[311597045,1705263301567,217.81068994,0.00022099,2]
[311597046,1705263301993,3142.27857707,0.00022099,2]
[311597047,1705263302546,155.0,0.00022099,2]
[311597048,1705263302639,150.0,0.00022099,2]
[311597049,1705263302730,286.46048071,0.00022099,2]
[311597050,1705263302782,42970.8731581,0.00022099,2]
[311597051,1705263303106,155.0,0.00022099,2]
[311597052,1705263303140,177.71097035,0.00022099,2]
[311597053,1705263304119,230.42248665,0.00022099,2]
[311597054,1705263304174,33733.67881694,0.00022099,2]
[311597055,1705263304214,2295.54641658,0.00022099,2]
[311597056,1705263304240,155.0,0.00022099,2]
[311597057,1705263304266,155.0,0.00022099,2]
[311597058,1705263304673,487.53390948,0.00022099,2]
[311597059,1705263305131,300.0,0.00022013,2]
[311597060,1705263305188,234.22809812,0.00022099,2]
[311597061,1705263305336,242.31099707,0.00022099,2]
[311597062,1705263305386,155.0,0.00022099,2]
[311597063,1705263305416,3042.42393751,0.00022099,2]
[311597064,1705263305462,370.92564155,0.00022099,2]
[311597065,1705263305671,155.0,0.00022099,2]
[311597066,1705263305844,376.61875021,0.00022099,2]
[311597067,1705263305987,515.20412514,0.00022099,2]
[311597068,1705263306669,162.08624928,0.00022099,2]
[311597069,1705263306699,361.45556358,0.00022099,2]
[311597070,1705263306904,155.0,0.00022099,2]
[311597071,1705263306991,155.0,0.00022099,2]
[311597072,1705263307426,516.05068541,0.00022099,2]
[311597073,1705263307495,337.38382582,0.00022099,2]
[311597074,1705263307547,400.0,0.00022099,2]
[311597075,1705263307831,2778.38766529,0.00022099,2]
[311597076,1705263308176,155.0,0.00022099,2]
[311597077,1705263308376,524.82072606,0.00022099,2]
[311597078,1705263308598,491.78375535,0.00022099,2]
[311597079,1705263309200,1888.88421576,0.00022099,2]
[311597080,1705263310209,256.13337218,0.00022099,2]
[311597081,1705263310249,5097.48207835,0.00022099,2]
[311597082,1705263310285,7778.02316605,0.00022099,2]
[311597083,1705263310321,219.54020736,0.00022099,2]
[311597084,1705263310834,156.6051087,0.00022099,2]
[311597085,1705263311280,158.68234382,0.00022099,2]
[311597086,1705263311312,155.0,0.00022099,2]
[311597087,1705263312019,474.07011327,0.00022098,2]
[311597088,1705263312389,355.16935246,0.00022099,2]
[311597089,1705263313019,842.51048405,0.00022098,2]
[311597090,1705263313052,3373.50447949,0.00022099,2]
[311597091,1705263313253,766.13795636,0.00022099,2]
[311597092,1705263314260,2562.99868641,0.00022098,2]
[311597093,1705263314452,1043.21340546,0.00022098,2]
[311597094,1705263314689,523.43271801,0.00022098,2]
[311597095,1705263314991,24317.54610841,0.00022099,2]
[311597096,1705263315184,404.01534873,0.00022099,2]
[311597097,1705263315467,1135.7914354,0.00022098,2]
[311597098,1705263315782,5354.144,0.00022026,2]
[311597099,1705263315824,155.22013602,0.00022099,2]
[311597100,1705263316221,456.99666934,0.00022099,2]
[311597101,1705263316321,602.34152786,0.00022099,2]
[311597102,1705263316428,155.74477967,0.00022099,2]
[311597103,1705263316583,342.78423027,0.00022098,2]
[311597104,1705263316677,155.22596484,0.00022099,2]
[311597105,1705263316782,42970.8731581,0.00022099,2]
[311597106,1705263316938,265.30248327,0.00022099,2]
[311597107,1705263317337,2945.1248498,0.00022099,2]
[311597108,1705263317370,242.09591349,0.00022099,2]
[311597109,1705263317413,157.39865583,0.00022099,2]
[311597110,1705263317511,301.07198682,0.00022099,2]
[311597111,1705263317693,215.45860131,0.00022099,2]
[311597112,1705263317834,155.0,0.00022099,2]
[311597113,1705263317868,33355.37935014,0.00022099,2]
[311597114,1705263317901,501.09834726,0.00022099,2]
[311597115,1705263317934,2609.63719576,0.00022099,2]
[311597116,1705263317999,3142.27857707,0.00022099,2]
[311597117,1705263318122,230.8785099,0.00022099,2]
[311597118,1705263318185,961.58512573,0.00022099,2]
[311597119,1705263318287,1708.02080546,0.00022099,2]
[311597120,1705263318675,363.8051896,0.00022099,2]
[311597121,1705263318933,239.09300154,0.00022099,2]
[311597122,1705263319172,206.49958974,0.00022099,2]
[311597123,1705263319887,3635.508334,0.00022099,2]
[311597124,1705263320028,155.0,0.00022099,2]
[311597125,1705263321095,596.78787714,0.00022099,2]
[311597126,1705263321133,158.09714076,0.00022099,2]
[311597127,1705263321163,211.4343928,0.00022099,2]
[311597128,1705263321301,286.46048071,0.00022099,2]
[311597129,1705263321349,162.08624928,0.00022099,2]
[311597130,1705263321382,484.31265077,0.00022099,2]
[311597131,1705263321444,386.6891831,0.00022099,2]
[311597132,1705263321500,291.66404832,0.00022099,2]
[311597133,1705263321657,200.0,0.00022099,2]
[311597134,1705263321840,2730.55071069,0.00022099,2]
[311597135,1705263321881,337.38382582,0.00022099,2]
[311597136,1705263322072,285.64727706,0.00022099,2]
[311597137,1705263322102,209.20492961,0.00022099,2]
[311597138,1705263322202,155.1313233,0.00022099,2]
[311597139,1705263322262,280.29472975,0.00022099,2]
[311597140,1705263322292,311.94853868,0.00022099,2]
[311597141,1705263323860,506.51120253,0.00022099,2]
[311597142,1705263324271,167.46121188,0.00022099,2]
[311597143,1705263324359,175.83572121,0.00022099,2]
[311597144,1705263324465,524.10105498,0.00022098,2]
[311597145,1705263325001,155.27713894,0.00022099,2]
[311597146,1705263325200,1888.88421576,0.00022099,2]
[311597147,1705263325424,211.04481535,0.00022098,2]
[311597148,1705263325467,369.3520876,0.00022098,2]
[311597149,1705263325550,400.0,0.00022099,2]
[311597150,1705263325700,763.14611948,0.00022098,2]
[311597151,1705263326088,170.64601897,0.00022099,2]
[311597152,1705263326184,1285.81246778,0.00022099,2]
[311597153,1705263326894,155.40188375,0.00022099,2]
[311597154,1705263327234,155.0,0.00022099,2]
[311597155,1705263327261,159.04473133,0.00022099,2]
[311597156,1705263328010,605.46938935,0.00022099,2]
[311597157,1705263328449,785.96283621,0.00022099,2]
[311597158,1705263329020,847.54100444,0.00022099,2]
[311597159,1705263329307,115369.19699292,0.00022099,2]
[311597160,1705263329470,1137.81428018,0.00022099,2]
[311597161,1705263329605,157.55915277,0.00022025,2]
[311597162,1705263330037,5097.48207835,0.00022099,2]
[311597163,1705263331833,427.27383797,0.00022025,2]
[311597164,1705263331877,2933.79265773,0.00022099,2]
[311597165,1705263332123,33355.37935014,0.00022099,2]
[311597166,1705263332158,291.98189048,0.00022099,2]
[311597167,1705263332189,439.67010125,0.00022099,2]
[311597168,1705263332661,301.28748298,0.00022099,2]
[311597169,1705263333005,231.39384105,0.00022099,2]
[311597170,1705263333037,403.19657347,0.00022099,2]
[311597171,1705263333195,169.42146353,0.00022099,2]
[311597172,1705263334651,352.01429033,0.00022099,2]
[311597173,1705263335130,42970.8731581,0.00022099,2]
[311597174,1705263336026,12289.26387543,0.00022098,2]
[311597175,1705263336117,1901.00247485,0.00022099,2]
[311597176,1705263336204,155.0,0.00022099,2]
[311597177,1705263336686,161.57598624,0.00022099,2]
[311597178,1705263336929,357.48531174,0.00022099,2]
[311597179,1705263337448,337.38382582,0.00022099,2]
[311597180,1705263337509,387.91685191,0.00022099,2]
[311597181,1705263337837,159.23180862,0.00022099,2]
[311597182,1705263340297,655.24322879,0.00022098,2]
[311597183,1705263340563,270.52061016,0.00022098,2]
[311597184,1705263342828,162.08624928,0.00022099,2]
[311597185,1705263343202,1821.79373044,0.00022099,2]
[311597186,1705263343557,299.31055566,0.00022099,2]
[311597187,1705263346358,224.33907704,0.00022099,2]
[311597188,1705263347755,6828.8689,0.00022009,2]
[311597189,1705263347857,29156.5963776,0.00022099,2]
[311597190,1705263350047,4045.68629954,0.00022099,2]
[311597191,1705263350806,268.32194678,0.00022099,2]
[311597192,1705263351842,6731.165521,0.00022099,2]
[311597193,1705263353914,12289.26387543,0.00022099,2]
[311597194,1705263354028,302.89880783,0.00022099,2]
[311597195,1705263354785,2500.0,0.00022026,2]
[311597196,1705263354918,265.185965,0.00022099,2]
[311597197,1705263357445,337.38382582,0.00022099,2]
[311597198,1705263358986,300.9649,0.00022013,2]
[311597199,1705263360592,3002.91651816,0.00022099,2]
[311597200,1705263360685,161.62109205,0.00022099,2]
[311597201,1705263361286,544.63921916,0.00022025,2]
[311597202,1705263369799,383.94627706,0.00022099,2]
[311597203,1705263371011,950.84386879,0.00022099,2]
[311597204,1705263374838,314.14885163,0.00022099,2]
[311597205,1705263377706,373.00615305,0.00022,2]
[311597206,1705263377913,5430.41430337,0.00022099,2]
[311597207,1705263378979,373.00615304,0.00022013,2]
[311597208,1705263380319,373.00615304,0.00022025,2]
[311597209,1705263382635,200.84826555,0.00022025,2]
[311597210,1705263383446,214.77179737,0.00022099,2]
[311597211,1705263387818,177.49751015,0.00022099,2]
[311597212,1705263388863,376.78302695,0.00022099,2]
[311597213,1705263390616,361.2821615,0.00022099,2]
[311597214,1705263396747,168.1860099,0.00022025,2]
[311597215,1705263423921,31861.68429683,0.0002209,2]
[311597216,1705263430529,36049.0882,0.00022004,2]
[311597217,1705263440287,1290.35008244,0.00022025,2]
[311597218,1705263456941,419.53503609,0.00022099,2]
[311597219,1705263462558,2899.70304819,0.00022099,2]
[311597220,1705263463954,361.2821615,0.00022099,2]
[311597221,1705263464363,284.84922532,0.00022025,2]
[311597222,1705263464536,299.99,0.00022106,7]
[311597223,1705263464627,704.41,0.00021211,2]
[311597224,1705263464828,704.41,0.00021322,2]
[311597225,1705263465140,704.41,0.00021434,2]
[311597226,1705263465347,704.41,0.00021545,2]
[311597227,1705263465611,704.41,0.00021657,2]
[311597228,1705263465806,704.41,0.00021769,2]
[311597229,1705263466005,704.41,0.0002188,2]
[311597230,1705263466537,12131.01,0.00021211,2]
[311597231,1705263466577,155.53796426,0.00022099,2]
[311597232,1705263466638,704.41,0.00021992,2]
[311597233,1705263469997,2741.49080404,0.00022099,2]
[311597234,1705263478565,1275.53650709,0.00022099,2]
[311597235,1705263478949,157.55915277,0.00022025,2]
[311597236,1705263482180,150.0,0.00022099,2]
[311597237,1705263482512,150.0,0.00022099,2]
[311597238,1705263485008,4936.8178,0.00022,2]
[311597239,1705263489011,288.51705321,0.00022099,2]
[311597240,1705263497522,15918.7829,0.00022,2]
[311597241,1705263501559,435.71137532,0.00022023,2]
[311597242,1705263503034,1000.0,0.00022003,2]
[311597243,1705263506574,435.71137529,0.00022024,2]
[311597244,1705263511645,435.71137529,0.00022024,2]
[311597245,1705263513577,808.89955573,0.00021878,2]
[311597246,1705263516585,435.71137529,0.00022025,2]
[311597247,1705263521103,12889.9149,0.00022,2]
[311597248,1705263521577,435.71137529,0.00022025,2]
[311597249,1705263524014,174.03763342,0.00022099,2]
[311597250,1705263539500,174.03763342,0.00022099,2]
[311597251,1705263552400,524.45762012,0.00022099,2]
[311597252,1705263553120,2116.34264777,0.00022099,2]
[311597253,1705263557511,174.03763342,0.00022099,2]
[311597254,1705263562683,1963.74169442,0.00022025,2]
[311597255,1705263570924,826.15,0.00021203,2]
[311597256,1705263575512,174.03763342,0.00022099,2]
[311597257,1705263591095,488.31,0.00019271,2]
[311597258,1705263591563,488.31,0.00021535,2]
[311597259,1705263594800,189.89948354,0.00022025,2]
[311597260,1705263595128,8401.5618,0.00022,2]
[311597261,1705263595504,173.56599157,0.00022099,2]
[311597262,1705263610265,143133.8251,0.00022,2]
[311597263,1705263615156,2500.0,0.00022022,2]
[311597264,1705263620757,860.2333883,0.00022025,2]
[311597265,1705263636051,155.0,0.00022099,2]
[311597266,1705263654031,156.3108793,0.00022099,2]
[311597267,1705263670135,151.15,0.00021328,2]
[311597268,1705263670364,151.15,0.00021394,2]
[311597269,1705263670568,151.15,0.00021459,2]
[311597270,1705263670795,151.15,0.00021525,2]
[311597271,1705263671041,151.15,0.0002159,2]
[311597272,1705263671256,151.15,0.00021655,2]
[311597273,1705263671651,151.15,0.00021721,2]
[311597274,1705263672044,151.15,0.00021786,2]
[311597275,1705263672128,151.15,0.00021851,2]
[311597276,1705263672355,151.15,0.00021917,2]
[311597277,1705263672748,151.15,0.00021982,2]
[311597278,1705263673008,151.15,0.00022048,2]
[311597279,1705263687015,161.22,0.00021362,2]
[311597280,1705263697452,1154.65291512,0.00022021,2]
[311597281,1705263704921,19230.8846,0.00022,2]
[311597282,1705263727201,214.12,0.00021152,2]
[311597283,1705263740513,1000.0,0.00022022,2]
[311597284,1705263782012,629.0,0.00022099,2]
[311597285,1705263792446,15119.89877913,0.00022024,2]
[311597286,1705263801122,573.48892554,0.00022024,2]
[311597287,1705263812305,56644.0,0.00021898,2]
[311597288,1705263813791,205.0,0.00021552,2]
[311597289,1705263821113,528.91,0.00021151,2]
[311597290,1705263835895,-196.59706595,0.000221,2]
[311597291,1705263835916,-1368.6119467,0.000221,2]
[311597292,1705263835940,-252.04447886,0.000221,2]
[311597293,1705263835962,-172.75471988,0.000221,2]
[311597294,1705263835985,-48009.99178861,0.000221,2]
[311597295,1705263848061,199.78902786,0.00022099,2]
[311597296,1705263865914,5000.0,0.00022019,2]
[311597297,1705263866224,1368.6119467,0.00022099,2]
[311597298,1705263870267,271.04,0.00021165,2]
[311597299,1705263871573,2500.0,0.00022016,2]
[311597300,1705263877133,3654.4737,0.00022,2]
[311597301,1705263881430,243.16885102,0.00022099,2]
[311597302,1705263884346,1170.54966445,0.00022099,2]
[311597303,1705263889582,300.87488751,0.00022099,2]
[311597304,1705263890888,486.6031582,0.00022099,2]
[311597305,1705263902388,250.0,0.00021158,2]
[311597306,1705263902698,939.95776854,0.00022099,2]
[311597307,1705263903327,384.34681583,0.00022099,2]
[311597308,1705263904235,230.27515087,0.00022099,2]
[311597309,1705263906865,616.06750201,0.00022099,2]
[311597310,1705263908524,1193.40523417,0.00022031,2]
[311597311,1705263919346,168.34,0.00021158,2]
[311597312,1705263919758,168.34,0.00021511,2]
[311597313,1705263920779,168.34,0.00021863,2]
[311597314,1705263920943,772.39536729,0.00022099,2]
[311597315,1705263921285,23900.0,0.00021158,2]
[311597316,1705263925353,512.35768881,0.00022099,2]
[311597317,1705263931683,155.0,0.00022099,2]
[311597318,1705263936893,3803.7574606,0.0003,120]
[311597319,1705263940782,523.09304668,0.00022099,2]
[311597320,1705263958752,155.0,0.0003,120]
[311597321,1705263980947,10000.0,0.00021918,2]
[311597322,1705263981468,382.32595036,0.00022024,2]
[311597323,1705264004319,5000.0,0.00022018,2]
[311597324,1705264011293,155.0,0.00022099,2]
[311597325,1705264021554,300.0,0.00022099,2]
[311597326,1705264028411,1073.8967,0.00022018,2]
[311597327,1705264035987,496.28616688,0.00022099,2]
[311597328,1705264052225,10027.2,0.00021159,2]
[311597329,1705264052538,852.37,0.00021159,2]
[311597330,1705264056372,10517.82166624,0.00022099,2]
[311597331,1705264057283,487.53390948,0.00022099,2]
[311597332,1705264079554,500.0,0.00021157,2]
[311597333,1705264096398,923.72233208,0.00022016,2]
[311597334,1705264101023,515.6,0.00019238,2]
[311597335,1705264101276,515.6,0.00021502,2]
[311597336,1705264113133,500.0,0.00021116,2]
[311597337,1705264114613,500.0,0.00021664,2]
[311597338,1705264115107,1465.1943,0.00022017,2]
[311597339,1705264136751,155.0,0.00022099,2]
[311597340,1705264138535,200.0,0.00021159,2]
[311597341,1705264138569,530.38236178,0.00022099,2]
[311597342,1705264138697,302.03531833,0.00022099,2]
[311597343,1705264140216,207.01690908,0.00022,2]
[311597344,1705264144192,5000.0,0.00022015,2]
[311597345,1705264145076,915.86222091,0.00022099,2]
[311597346,1705264145179,207.01690898,0.00022001,2]
[311597347,1705264146486,215.1635691,0.00022079,2]
[311597348,1705264146549,418.95927661,0.00022092,2]
[311597349,1705264149062,155.0,0.00022099,2]
[311597350,1705264150337,207.01690898,0.00022002,2]
[311597352,1705264154295,246.50580772,0.00022099,2]
[311597353,1705264155195,207.01690898,0.00022003,2]
[311597354,1705264156038,354.27308638,0.00022099,2]
[311597355,1705264157469,1177.41427021,0.00022099,2]
[311597356,1705264157497,314.06282553,0.00022099,2]
[311597357,1705264160180,207.01690898,0.00022003,2]
[311597358,1705264161837,254.8839669,0.00022016,2]
[311597359,1705264164724,155.0,0.00022099,2]
[311597360,1705264165274,207.01690898,0.00022004,2]
[311597361,1705264168899,234.99742603,0.00022099,2]
[311597362,1705264169240,155.0,0.00022099,2]
[311597363,1705264170191,207.01690898,0.00022005,2]
[311597364,1705264171873,155.0,0.00022099,2]
[311597365,1705264172476,155.0,0.00021989,2]
[311597366,1705264175211,207.01690898,0.00022006,2]
[311597367,1705264175827,334.25224006,0.00022016,2]
[311597368,1705264177544,259.9949317,0.00022099,2]
[311597370,1705264180199,220.903327,0.00022099,2]
[311597371,1705264180335,207.01690898,0.00022007,2]
[311597372,1705264181102,334.25224005,0.00022027,2]
[311597373,1705264183138,155.0,0.00022099,2]
[311597374,1705264183238,280.61526045,0.00022099,2]
[311597375,1705264185175,207.01690898,0.00022008,2]
[311597376,1705264185883,2283.65,0.00022017,2]
[311597377,1705264186556,202.52838964,0.00022099,2]
[311597378,1705264186680,155.0,0.00022099,2]
[311597379,1705264188903,236.16154191,0.00022099,2]
[311597380,1705264190354,308.09995356,0.00022099,2]
[311597381,1705264190413,207.01690898,0.00022008,2]
[311597382,1705264192545,252.77865356,0.00022099,2]
[311597383,1705264193528,265.44865752,0.00022099,2]
[311597384,1705264195177,207.01690898,0.00022009,2]
[311597385,1705264196251,155.0,0.00022099,2]
[311597386,1705264199134,291.78559589,0.00022099,2]
[311597387,1705264199665,224.85410162,0.00022099,2]
[311597388,1705264200212,207.01690898,0.0002201,2]
[311597389,1705264201231,261.90609447,0.00022099,2]
[311597390,1705264201445,9913.21268125,0.00022099,2]
[311597391,1705264202948,257.04625262,0.00022099,2]
[311597393,1705264205208,207.01690898,0.00022011,2]
[311597394,1705264206304,155.05,0.00021312,2]
[311597395,1705264206444,155.05,0.0002137,2]
[311597396,1705264206524,253.33285679,0.00022099,2]
[311597397,1705264206556,162.32880254,0.00022099,2]
[311597398,1705264206675,155.05,0.00021429,2]
[311597399,1705264206855,155.05,0.00021487,2]
[311597400,1705264207083,155.05,0.00021546,2]
[311597401,1705264207552,155.05,0.00021604,2]
[311597402,1705264207757,155.05,0.00021663,2]
[311597403,1705264207973,155.05,0.00021721,2]
[311597404,1705264208471,155.05,0.0002178,2]
[311597405,1705264208550,155.05,0.00021838,2]
[311597406,1705264208628,155.05,0.00021896,2]
[311597407,1705264208962,155.05,0.00021955,2]
[311597408,1705264209067,155.05,0.00022013,2]
[311597409,1705264209303,155.05,0.00022072,2]
[311597410,1705264210189,207.01690898,0.00022012,2]
[311597411,1705264210654,161.05,0.00021378,2]
[311597412,1705264210847,161.05,0.00022048,2]
[311597413,1705264214265,155.48516503,0.00022099,2]
[311597414,1705264215204,207.01690898,0.00022013,2]
[311597415,1705264215246,155.0,0.00022099,2]
[311597416,1705264218633,534.39141328,0.00022015,2]
[311597417,1705264220189,207.01690898,0.00022013,2]
[311597418,1705264221222,1891.14004649,0.00021878,2]
[311597419,1705264221286,397.91743256,0.00021878,2]
[311597420,1705264223434,665.61855425,0.00022016,2]
[311597421,1705264225200,207.01690898,0.00022014,2]
[311597422,1705264229248,157.21918192,0.00022099,2]
[311597423,1705264230212,207.01690898,0.00022015,2]
[311597450,1705264231773,-37061.40224251,0.000221,2]
[311597457,1705264231836,-7235.15095049,0.000221,2]
[311597458,1705264231847,-1160.51223234,0.000221,2]
[311597462,1705264231906,2834.0599,0.00022005,2]
[311597463,1705264231920,-1073.57869219,0.000221,2]
[311597464,1705264231932,-723.29357829,0.000221,2]
[311597465,1705264231944,-717.24099228,0.000221,2]
[311597466,1705264231956,-652.94,0.000221,2]
[311597467,1705264231973,-7224.71262522,0.000221,2]
[311597468,1705264232022,-7644.22585401,0.000221,2]
[311597469,1705264232035,-3541.94354438,0.000221,2]
[311597470,1705264232070,-725.8264,0.000221,2]
[311597471,1705264232082,-5028.4308006,0.000221,2]
[311597472,1705264232097,-1652.31000009,0.000221,2]
[311597473,1705264236180,20137.1139,0.00022015,2]
[311597485,1705264237737,-639.0403552,0.000221,2]
[311597488,1705264237748,-3362.12,0.000221,2]
[311597489,1705264237760,-2640.88972985,0.000221,2]
[311597490,1705264237797,-3561.16629055,0.000221,2]
[311597491,1705264237809,-2978.14036837,0.000221,2]
[311597492,1705264237823,-2163.36210758,0.000221,2]
[311597493,1705264237835,-10138.84638116,0.000221,2]
[311597494,1705264237844,-688.91552554,0.000221,2]
[311597495,1705264237854,-1903.19183348,0.000221,2]
[311597496,1705264237864,-220.84655992,0.000221,2]
[311597497,1705264237873,-249.17964513,0.000221,2]
[311597498,1705264237882,-447.84779422,0.000221,2]
[311597499,1705264237892,-155.0,0.000221,2]
[311597500,1705264237901,-202.9253968,0.000221,2]
[311597501,1705264237910,-940.84726982,0.000221,2]
[311597502,1705264237920,-341.33074838,0.000221,2]
[311597503,1705264237929,-156.22660165,0.000221,2]
[311597504,1705264237939,-247.22239799,0.000221,2]
[311597505,1705264237948,-895.99798778,0.000221,2]
[311597506,1705264237958,-314.95216612,0.000221,2]
[311597507,1705264237967,-257.41602689,0.000221,2]
[311597508,1705264237976,-200.0,0.000221,2]
[311597509,1705264237986,-197.45841712,0.000221,4]
[311597510,1705264237996,-175.39494762,0.00022101,2]
[311597511,1705264238005,-3682.64491069,0.00022101,2]
[311597512,1705264238015,-525.39497036,0.00022101,2]
[311597513,1705264238024,-2315.2817868,0.00022101,2]
[311597514,1705264238034,-4536.13948098,0.00022101,2]
[311597515,1705264238043,-2226.43704472,0.00022102,2]
[311597516,1705264238052,-703.79934886,0.00022102,2]
[311597517,1705264238062,-212.68865049,0.00022102,2]
[311597518,1705264238071,-348.18271296,0.00022103,2]
[311597519,1705264238081,-205.7419083,0.00022103,2]
[311597520,1705264238090,-1206.80470232,0.00022103,2]
[311597521,1705264238100,-162.32363726,0.00022103,2]
[311597522,1705264238109,-3929.69462296,0.00022103,2]
[311597523,1705264238123,-318.39239097,0.00022103,2]
[311597524,1705264238133,-4630.74851402,0.00022103,2]
[311597525,1705264238142,-7774.2456972,0.00022103,2]
[311597526,1705264238151,-637.66467994,0.00022103,2]
[311597527,1705264238161,-387.95276072,0.00022103,2]
[311597528,1705264238170,-2943.34420832,0.00022103,2]
[311597529,1705264238179,-155.0,0.00022103,2]
[311597530,1705264238189,-5194.47565066,0.00022103,2]
[311597531,1705264238198,-486.30659878,0.00022103,2]
[311597532,1705264238208,-2619.42571149,0.00022103,2]
[311597533,1705264238217,-155.26734927,0.00022103,2]
[311597534,1705264238226,-222.7246654,0.00022103,2]
[311597535,1705264238236,-206.03318007,0.00022103,2]
[311597536,1705264238245,-572.14510643,0.00022103,2]
[311597537,1705264238254,-1915.13815693,0.00022103,2]
[311597538,1705264238263,-704.41,0.00022104,2]
[311597540,1705264238273,-540.69748722,0.00022104,2]
[311597542,1705264238282,-521.01908608,0.00022105,2]
[311597543,1705264238291,-200.18643562,0.00022105,2]
[311597544,1705264238300,-530.27421111,0.00022105,2]
[311597546,1705264238309,-162.59683057,0.00022105,2]
[311597548,1705264238318,-244.64133608,0.00022105,2]
[311597550,1705264238327,-172.36420229,0.00022105,2]
[311597552,1705264238336,-200.01126006,0.00022105,2]
[311597554,1705264238345,-157.23213545,0.00022105,2]
[311597556,1705264238354,-172.18800416,0.00022105,2]
[311597558,1705264238363,-229.67206448,0.00022105,2]
[311597560,1705264238371,-940.4597032,0.00022105,2]
[311597562,1705264238381,-1712.75119605,0.00022105,2]
[311597565,1705264238402,-312.05367796,0.00022105,2]
[311597567,1705264238411,-156.03028787,0.00022105,2]
[311597569,1705264238421,-419.83879801,0.00022105,2]
[311597571,1705264238430,-1368.82567021,0.00022105,2]
[311597573,1705264238439,-499.99,0.00022105,2]
[311597575,1705264238448,-311.97,0.00022105,2]
[311597577,1705264238458,-499.99,0.00022105,2]
[311597579,1705264238467,-4794.15,0.00022105,2]
[311597581,1705264238476,-4148.41,0.00022105,2]
[311597583,1705264238485,-2234.4,0.00022105,2]
[311597585,1705264238494,-566.45,0.00022105,2]
[311597587,1705264238503,-1024.62,0.00022105,2]
[311597589,1705264238513,-711.13,0.00022105,2]
[311597591,1705264238524,-1000.0,0.00022105,2]
[311597593,1705264238533,-540.69748722,0.00022105,2]
[311597595,1705264238542,-540.69748722,0.00022105,2]
[311597597,1705264238552,-176.90040225,0.00022106,2]